fUST/lending_fUST_20240602
["ID","MTS","AMOUNT","RATE_DAILY","PERIOD"]
[328379476,1717291847712,-181.55463715,0.00021917,2]
[328379477,1717291847721,-500.0,0.00021917,2]
[328379478,1717291847730,-151.0,0.00021917,2]
[328379479,1717291847739,-151.0,0.00021917,2]
[328379480,1717291847748,-151.0,0.00021917,2]
[328379481,1717291847758,-151.0,0.00021917,2]
[328379482,1717291847767,-151.0,0.00021917,2]
[328379483,1717291847780,-151.0,0.00021917,2]
[328379484,1717291847789,-153.892642,0.00021917,2]
[328379485,1717291847798,-500.0,0.00021917,2]
[328379486,1717291847808,-1000.0,0.00021917,2]
[328379487,1717291847817,-722.27,0.00021917,2]
[328379488,1717291847826,-1480.62,0.00021917,2]
[328379489,1717291847835,-803.35,0.00021917,2]
[328379490,1717291847847,-500.0,0.00021917,2]
[328379491,1717291847857,-500.0,0.00021917,2]
[328379492,1717291847866,-151.0,0.00021917,2]
[328379493,1717291847875,-1557.56,0.00021917,2]
[328379494,1717291847885,-500.0,0.00021917,2]
[328379495,1717291847894,-500.0,0.00021917,2]
[328379496,1717291847903,-727.25,0.00021917,2]
[328379497,1717291847913,-500.0,0.00021917,2]
[328379498,1717291847922,-500.0,0.00021917,2]
[328379499,1717291847931,-500.0,0.00021917,2]
[328379500,1717291847940,-500.0,0.00021917,2]
[328379501,1717291847949,-291.32884612,0.00021917,2]
[328379502,1717291847963,-208.67115388,0.00021917,2]
[328379503,1717291847972,-451.77348148,0.00021917,2]
[328379504,1717291848146,-878.92675256,0.00021915,2]
[328379507,1717291859323,228.2693,0.00026678,30]
[328379510,1717291912270,1489.2515493,9.999e-05,2]
[328379513,1717291960817,1000.0,0.00027,30]
[328379519,1717292603121,351.98389155,9.999e-05,2]
[328379601,1717293032078,-172.3391459,0.0002078,2]
[328379603,1717293032088,-659.9278516,0.00020946,2]
[328379605,1717293032098,-934.0620867,0.000217,2]
[328379607,1717293032108,-24821.0586915,0.0002172,2]
[328379608,1717293032118,-1000.0,0.000218,6]
[328379609,1717293032127,-1000.0,0.000218,7]
[328379610,1717293032137,-153.0,0.000218,2]
[328379611,1717293032146,-3000.0,0.000218,2]
[328379612,1717293032155,-153.0,0.000218,2]
[328379613,1717293032165,-153.0,0.000218,2]
[328379614,1717293032174,-153.0,0.000218,2]
[328379615,1717293032183,-3000.0,0.0002181,2]
[328379616,1717293032193,-464.88612729,0.00021817,3]
[328379617,1717293032202,-3000.0,0.0002182,2]
[328379618,1717293032211,-4233.16048784,0.00021822,2]
[328379619,1717293032220,-3000.0,0.0002183,2]
[328379620,1717293032230,-3000.0,0.0002184,2]
[328379621,1717293032239,-3000.0,0.0002185,2]
[328379622,1717293032248,-3000.0,0.0002186,2]
[328379623,1717293032257,-3000.0,0.0002187,2]
[328379625,1717293032267,-3000.0,0.0002188,2]
[328379626,1717293032277,-5316.109451,0.0002189,2]
[328379628,1717293032287,-498.0,0.00021902,2]
[328379630,1717293032296,-150.851,0.00021902,2]
[328379631,1717293032306,-150.507,0.00021902,2]
[328379633,1717293032316,-209.9768732,0.00021914,2]
[328379635,1717293032326,-10224.11093107,0.00021915,2]
[328379636,1717293032335,-436.51885275,0.00021915,2]
[328379638,1717293032345,-899.04673739,0.00021915,2]
[328379640,1717293032355,-163.3476093,0.00021915,2]
[328379641,1717293032365,-2878.49149019,0.00021915,2]
[328379642,1717293032375,-155.68611219,0.00021915,2]
[328379643,1717293032384,-155.19428743,0.00021915,2]
[328379644,1717293032394,-154.98450155,0.00021915,2]
[328379645,1717293032403,-192.20959345,0.00021915,2]
[328379646,1717293032412,-352.71996601,0.00021915,2]
[328379647,1717293032422,-179.85199215,0.00021915,2]
[328379648,1717293032431,-723.25492406,0.00021915,2]
[328379649,1717293032440,-838.63205431,0.00021915,2]
[328379650,1717293032450,-1770.91564458,0.00021915,2]
[328379651,1717293032466,-914.03378746,0.00021915,2]
[328379660,1717293037890,-150.0,0.00021902,2]
[328379661,1717293037900,-150.0,0.00021902,2]
[328379662,1717293037910,-724.25,0.00021915,2]
[328379663,1717293037921,-775.25132775,0.00021915,2]
[328379664,1717293038034,-1701.77144583,0.00021915,2]
[328379694,1717293043449,-3633.68221479,0.00021915,2]
[328379696,1717293043460,-208.75177812,0.00021915,2]
[328379697,1717293043471,-327.44834771,0.00021916,2]
[328379698,1717293043480,-27677.80008446,0.00021916,2]
[328379796,1717293900644,300.29914035,0.00027,30]
[328379859,1717294232441,-293.4663814,0.00016436,2]
[328379860,1717294232450,-270.1573537,0.00020333,2]
[328379861,1717294232459,-1207.7593491,0.00020389,2]
[328379862,1717294232468,-163.1015818,0.00020396,2]
[328379863,1717294232478,-250.0,0.00020399,2]
[328379864,1717294232487,-406.8629563,0.00020449,2]
[328379865,1717294232496,-153.0,0.00021096,2]
[328379866,1717294232506,-204.942387,0.00021096,2]
[328379867,1717294232515,-153.0,0.00021096,2]
[328379868,1717294232524,-204.942387,0.00021096,2]
[328379869,1717294232533,-153.0,0.00021096,2]
[328379870,1717294232543,-204.942387,0.00021096,2]
[328379871,1717294232552,-153.0,0.00021096,2]
[328379872,1717294232562,-204.942387,0.00021096,2]
[328379873,1717294232571,-306.0,0.00021096,2]
[328379874,1717294232580,-204.942387,0.00021096,2]
[328379875,1717294232589,-208.7558658,0.00021096,2]
[328379876,1717294232598,-204.942387,0.00021096,2]
[328379877,1717294232609,-204.942387,0.00021096,2]
[328379878,1717294232618,-203.6897747,0.00021096,2]
[328379879,1717294232627,-4233.16048784,0.00021614,2]
[328379880,1717294232752,-155.84027698,0.00021697,2]
[328379881,1717294232762,-310.4950788,0.000218,2]
[328379882,1717294232781,-155.0571443,0.000218,2]
[328379883,1717294232793,-409.884774,0.000218,2]
[328379884,1717294232803,-150.0,0.000218,2]
[328379885,1717294232813,-623.87213822,0.00021823,2]
[328379886,1717294232825,-1350.09378414,0.00021893,2]
[328379887,1717294232835,-150.099,0.00021902,2]
[328379888,1717294232844,-152.002,0.00021902,2]
[328379889,1717294232855,-498.0,0.00021902,2]
[328379890,1717294232864,-150.0,0.00021902,2]
[328379891,1717294232874,-681.93,0.00021907,3]
[328379892,1717294232884,-21943.04232184,0.00021914,2]
[328379899,1717294238250,-4140.88858464,0.00021914,2]
[328379901,1717294238262,-24151.6849466,0.00021914,2]
[328379902,1717294238273,-553.30298503,0.00021915,2]
[328379903,1717294238283,-1352.96492829,0.00021915,2]
[328379904,1717294238292,-19139.13880294,0.00021915,2]
[328379905,1717294238302,-457.59436602,0.00021915,2]
[328379906,1717294238313,-246.44365408,0.00021915,7]
[328379907,1717294238322,-159.33966155,0.00021915,2]
[328379908,1717294238332,-525.29241491,0.00021915,2]
[328379909,1717294238342,-157.22824623,0.00021915,2]
[328379910,1717294238352,-1048.37647081,0.00021915,2]
[328379911,1717294238362,-319.59462868,0.00021916,2]
[328379912,1717294238372,-502.89140527,0.00021916,2]
[328379913,1717294238381,-376.03777139,0.00021916,2]
[328379914,1717294238391,-3999.33800068,0.00021916,2]
[328379915,1717294238401,-500.0,0.00021916,2]
[328379916,1717294238411,-405.86175436,0.00021916,2]
[328379917,1717294238421,-498.2725065,0.00021916,2]
[328379918,1717294238430,-421.55429344,0.00021916,2]
[328379919,1717294238440,-212.71607727,0.00021916,2]
[328379920,1717294238449,-317.00093384,0.00021916,2]
[328379921,1717294238462,-500.0,0.00021916,2]
[328379922,1717294238471,-409.13023805,0.00021916,2]
[328379923,1717294238482,-323.3577561,0.00021917,7]
[328379924,1717294238492,-2000.0,0.00021917,2]
[328379925,1717294238502,-500.0,0.00021917,2]
[328379926,1717294238512,-570.41,0.00021917,2]
[328379927,1717294238521,-556.13,0.00021917,2]
[328379928,1717294238531,-500.0,0.00021917,2]
[328379929,1717294238542,-500.0,0.00021917,2]
[328379930,1717294238551,-500.0,0.00021917,2]
[328379931,1717294238561,-500.0,0.00021917,2]
[328379932,1717294238571,-505.78,0.00021917,2]
[328379933,1717294238581,-500.0,0.00021917,2]
[328379934,1717294238591,-574.23,0.00021917,2]
[328379935,1717294238601,-633.67,0.00021917,2]
[328379936,1717294238610,-500.0,0.00021917,2]
[328379937,1717294238620,-500.0,0.00021917,2]
[328379938,1717294238629,-500.0,0.00021917,2]
[328379939,1717294238638,-500.0,0.00021917,2]
[328379940,1717294238648,-530.14,0.00021917,2]
[328379941,1717294238658,-500.0,0.00021917,2]
[328379942,1717294238668,-500.0,0.00021917,2]
[328379943,1717294238678,-1198.34,0.00021917,2]
[328379944,1717294238688,-250.0,0.00021917,2]
[328379945,1717294238698,-500.0,0.00021917,2]
[328379946,1717294238707,-500.0,0.00021917,2]
[328379947,1717294238717,-500.0,0.00021917,2]
[328379948,1717294238727,-500.0,0.00021917,2]
[328379949,1717294238738,-500.0,0.00021917,2]
[328379950,1717294238748,-500.0,0.00021917,2]
[328379951,1717294238758,-500.0,0.00021917,2]
[328379952,1717294238769,-500.0,0.00021917,2]
[328379953,1717294238779,-500.0,0.00021917,2]
[328379954,1717294238788,-500.0,0.00021917,2]
[328379955,1717294238798,-680.12,0.00021917,2]
[328379956,1717294238808,-500.0,0.00021917,2]
[328379957,1717294238818,-500.0,0.00021917,2]
[328379958,1717294238828,-500.0,0.00021917,2]
[328379959,1717294238838,-500.0,0.00021917,2]
[328379960,1717294238847,-1255.44,0.00021917,2]
[328379961,1717294238857,-500.0,0.00021917,2]
[328379962,1717294238867,-581.78,0.00021917,2]
[328379963,1717294238877,-500.0,0.00021917,2]
[328379964,1717294238886,-500.0,0.00021917,2]
[328379965,1717294238896,-586.84,0.00021917,2]
[328379966,1717294238906,-500.0,0.00021917,2]
[328379967,1717294238917,-500.0,0.00021917,2]
[328379968,1717294238927,-500.0,0.00021917,2]
[328379969,1717294238936,-500.0,0.00021917,2]
[328379970,1717294238946,-500.0,0.00021917,2]
[328379971,1717294238956,-350.03527024,0.00021917,2]
[328379972,1717294238966,-500.0,0.00021917,2]
[328379973,1717294238976,-500.0,0.00021917,2]
[328379974,1717294238986,-553.34,0.00021917,2]
[328379975,1717294238995,-500.0,0.00021917,2]
[328379976,1717294239006,-644.07,0.00021917,2]
[328379977,1717294239016,-500.0,0.00021917,2]
[328379978,1717294239025,-500.0,0.00021917,2]
[328379979,1717294239035,-502.68886129,0.00021917,2]
[328379980,1717294239045,-846.41,0.00021917,2]
[328379981,1717294239055,-500.0,0.00021917,2]
[328379982,1717294239065,-548.2,0.00021917,2]
[328379983,1717294239074,-910.99,0.00021917,2]
[328379984,1717294239084,-500.0,0.00021917,2]
[328379985,1717294239094,-500.0,0.00021917,2]
[328379986,1717294239104,-1151.21,0.00021917,2]
[328379987,1717294239115,-503.1223497,0.00021917,2]
[328379988,1717294239126,-548.07,0.00021917,2]
[328379989,1717294239138,-500.0,0.00021917,2]
[328379990,1717294239148,-581.26,0.00021917,2]
[328379991,1717294239157,-1131.21,0.00021917,2]
[328379992,1717294239167,-500.0,0.00021917,2]
[328379993,1717294239176,-520.33,0.00021917,2]
[328379994,1717294239186,-574.06877315,0.00021917,2]
[328379995,1717294239195,-151.0,0.00021917,2]
[328379996,1717294239204,-151.0,0.00021917,2]
[328379997,1717294239216,-284.730934,0.00021917,2]
[328379998,1717294239225,-256.4537235,0.00021917,2]
[328379999,1717294239235,-500.0,0.00021917,2]
[328380000,1717294239244,-500.0,0.00021917,2]
[328380001,1717294239255,-500.0,0.00021917,2]
[328380002,1717294239270,-500.0,0.00021917,2]
[328380003,1717294239279,-500.0,0.00021917,2]
[328380004,1717294239289,-500.0,0.00021917,2]
[328380005,1717294239299,-500.0,0.00021917,2]
[328380006,1717294239309,-696.25,0.00021917,2]
[328380007,1717294239319,-500.0,0.00021917,2]
[328380008,1717294239329,-500.0,0.00021917,2]
[328380009,1717294239338,-2673.06,0.00021917,2]
[328380010,1717294239348,-725.62,0.00021917,2]
[328380011,1717294239357,-1884.74,0.00021917,2]
[328380012,1717294239368,-500.0,0.00021917,2]
[328380013,1717294239378,-793.11,0.00021917,2]
[328380014,1717294239387,-500.0,0.00021917,2]
[328380015,1717294239397,-500.0,0.00021917,2]
[328380016,1717294239407,-151.0,0.00021917,2]
[328380017,1717294239417,-227.690237,0.00021917,2]
[328380018,1717294239427,-519.39,0.00021917,2]
[328380019,1717294239440,-500.0,0.00021917,2]
[328380020,1717294239451,-650.7,0.00021917,2]
[328380021,1717294239460,-500.0,0.00021917,2]
[328380022,1717294239470,-500.0,0.00021917,2]
[328380023,1717294239479,-500.0,0.00021917,2]
[328380024,1717294239490,-560.34016163,0.00021917,2]
[328380025,1717294239500,-1094.58,0.00021917,2]
[328380026,1717294239510,-500.0,0.00021917,2]
[328380027,1717294239520,-500.0,0.00021917,2]
[328380028,1717294239530,-300.0,0.00021917,2]
[328380029,1717294239540,-2228.45,0.00021917,2]
[328380030,1717294239550,-500.0,0.00021917,2]
[328380031,1717294239560,-500.0,0.00021917,2]
[328380032,1717294239569,-537.01,0.00021917,2]
[328380033,1717294239579,-500.0,0.00021917,2]
[328380034,1717294239589,-500.0,0.00021917,2]
[328380035,1717294239599,-1344.23,0.00021917,2]
[328380036,1717294239609,-523.25035074,0.00021917,2]
[328380037,1717294239741,-500.0,0.00021917,2]
[328380038,1717294239751,-500.0,0.00021917,2]
[328380039,1717294239760,-592.17,0.00021917,2]
[328380040,1717294239770,-1583.35,0.00021917,2]
[328380041,1717294239780,-500.0,0.00021917,2]
[328380042,1717294239790,-500.0,0.00021917,2]
[328380043,1717294239799,-535.72,0.00021917,2]
[328380044,1717294239809,-500.0,0.00021917,2]
[328380045,1717294239819,-392.77639507,0.00021917,2]
[328380046,1717294239828,-692.73,0.00021917,2]
[328380047,1717294239837,-1036.62,0.00021917,2]
[328380048,1717294239847,-500.0,0.00021917,2]
[328380049,1717294239856,-500.0,0.00021917,2]
[328380050,1717294239868,-500.0,0.00021917,2]
[328380051,1717294239877,-566.67,0.00021917,2]
[328380052,1717294239886,-500.0,0.00021917,2]
[328380053,1717294239895,-3105.06,0.00021917,2]
[328380054,1717294239901,-500.0,0.00021917,2]
[328380055,1717294239911,-581.06,0.00021917,2]
[328380056,1717294239921,-500.0,0.00021917,2]
[328380057,1717294239930,-500.0,0.00021917,2]
[328380058,1717294239939,-500.0,0.00021917,2]
[328380059,1717294239949,-500.0,0.00021917,2]
[328380060,1717294239959,-1380.99,0.00021917,2]
[328380061,1717294239968,-500.0,0.00021917,2]
[328380062,1717294239977,-500.0,0.00021917,2]
[328380063,1717294239987,-500.0,0.00021917,2]
[328380064,1717294239996,-1355.55,0.00021917,2]
[328380065,1717294240006,-665.87,0.00021917,2]
[328380066,1717294240016,-500.0,0.00021917,2]
[328380067,1717294240025,-500.0,0.00021917,2]
[328380068,1717294240035,-1773.85,0.00021917,2]
[328380069,1717294240044,-500.0,0.00021917,2]
[328380070,1717294240053,-500.0,0.00021917,2]
[328380071,1717294240062,-613.92,0.00021917,2]
[328380072,1717294240071,-500.0,0.00021917,2]
[328380073,1717294240082,-500.0,0.00021917,2]
[328380074,1717294240091,-500.0,0.00021917,2]
[328380075,1717294240101,-500.0,0.00021917,2]
[328380076,1717294240110,-1125.5,0.00021917,2]
[328380077,1717294240122,-500.0,0.00021917,2]
[328380078,1717294240136,-500.0,0.00021917,2]
[328380079,1717294240146,-500.0,0.00021917,2]
[328380080,1717294240155,-2795.18,0.00021917,2]
[328380081,1717294240164,-775.41,0.00021917,2]
[328380082,1717294240175,-829.75,0.00021917,2]
[328380083,1717294240184,-500.0,0.00021917,2]
[328380084,1717294240194,-500.0,0.00021917,2]
[328380085,1717294240203,-500.0,0.00021917,2]
[328380086,1717294240215,-500.0,0.00021917,2]
[328380087,1717294240225,-1051.13,0.00021917,2]
[328380088,1717294240234,-540.8,0.00021917,2]
[328380089,1717294240243,-425.2143031,0.00021917,2]
[328380090,1717294240253,-500.0,0.00021917,2]
[328380091,1717294240262,-657.92,0.00021917,2]
[328380092,1717294240271,-500.0,0.00021917,2]
[328380093,1717294240280,-500.0,0.00021917,2]
[328380094,1717294240289,-500.0,0.00021917,2]
[328380095,1717294240299,-516.48030854,0.00021917,2]
[328380096,1717294240308,-500.0,0.00021917,2]
[328380097,1717294240317,-517.89194588,0.00021917,2]
[328380098,1717294240326,-676.38943016,0.00021917,2]
[328380107,1717294242444,-166.95056984,0.00021917,2]
[328380108,1717294242454,-690.65,0.00021917,2]
[328380109,1717294242464,-2832.21,0.00021917,2]
[328380110,1717294242474,-1875.96,0.00021917,2]
[328380111,1717294242483,-2928.52,0.00021917,2]
[328380112,1717294242492,-500.0,0.00021917,2]
[328380113,1717294242502,-576.18,0.00021917,2]
[328380114,1717294242511,-500.0,0.00021917,2]
[328380115,1717294242520,-500.0,0.00021917,2]
[328380116,1717294242531,-1181.43,0.00021917,2]
[328380117,1717294242540,-500.0,0.00021917,2]
[328380118,1717294242550,-500.0,0.00021917,2]
[328380119,1717294242561,-500.0,0.00021917,2]
[328380120,1717294242570,-500.0,0.00021917,2]
[328380121,1717294242580,-689.46,0.00021917,2]
[328380122,1717294242589,-500.0,0.00021917,2]
[328380123,1717294242598,-500.0,0.00021917,2]
[328380124,1717294242608,-500.0,0.00021917,2]
[328380125,1717294242619,-500.0,0.00021917,2]
[328380126,1717294242628,-168.30145747,0.00021917,2]
[328380127,1717294242638,-500.0,0.00021917,2]
[328380128,1717294242646,-649.65,0.00021917,2]
[328380129,1717294242655,-541.71,0.00021917,2]
[328380130,1717294242664,-500.0,0.00021917,2]
[328380131,1717294242781,-500.0,0.00021917,2]
[328380132,1717294242791,-500.0,0.00021917,2]
[328380133,1717294242800,-500.0,0.00021917,2]
[328380134,1717294242809,-2323.15,0.00021917,2]
[328380135,1717294242818,-500.0,0.00021917,2]
[328380136,1717294242827,-424.81134586,0.00021917,2]
[328380137,1717294242837,-500.0,0.00021917,2]
[328380138,1717294242846,-1773.75,0.00021917,2]
[328380139,1717294242855,-1035.04,0.00021917,2]
[328380140,1717294242867,-500.0,0.00021917,2]
[328380141,1717294242877,-527.98,0.00021917,2]
[328380142,1717294242886,-500.0,0.00021917,2]
[328380143,1717294242895,-500.0,0.00021917,2]
[328380144,1717294242905,-517.86146776,0.00021917,2]
[328380145,1717294242914,-521.1369429,0.00021917,2]
[328380146,1717294242923,-500.0,0.00021917,2]
[328380149,1717294242933,-500.0,0.00021917,2]
[328380151,1717294242942,-500.0,0.00021917,2]
[328380152,1717294242951,-500.0,0.00021917,2]
[328380153,1717294242960,-500.0,0.00021917,2]
[328380154,1717294242970,-500.0,0.00021917,2]
[328380155,1717294242979,-335.7486209,0.00021917,2]
[328380156,1717294242989,-500.0,0.00021917,2]
[328380157,1717294242998,-500.0,0.00021917,2]
[328380158,1717294243007,-500.0,0.00021917,2]
[328380159,1717294243016,-423.94399312,0.00021917,2]
[328380160,1717294243026,-1419.18,0.00021917,2]
[328380161,1717294243036,-500.0,0.00021917,2]
[328380162,1717294243045,-500.0,0.00021917,2]
[328380163,1717294243054,-151.0,0.00021917,2]
[328380164,1717294243063,-187.196376,0.00021917,2]
[328380165,1717294243072,-500.0,0.00021917,2]
[328380166,1717294243082,-500.0,0.00021917,2]
[328380167,1717294243092,-500.0,0.00021917,2]
[328380168,1717294243101,-865.08,0.00021917,2]
[328380169,1717294243111,-1493.65,0.00021917,2]
[328380170,1717294243123,-503.73353439,0.00021917,2]
[328380171,1717294243136,-500.0,0.00021917,2]
[328380172,1717294243146,-153.239835,0.00021917,2]
[328380173,1717294243155,-500.0,0.00021917,2]
[328380174,1717294243165,-151.0,0.00021917,2]
[328380175,1717294243175,-151.0,0.00021917,2]
[328380176,1717294243183,-151.0,0.00021917,2]
[328380177,1717294243193,-297.45865,0.00021917,2]
[328380178,1717294243204,-692.33,0.00021917,2]
[328380179,1717294243214,-566.93,0.00021917,2]
[328380180,1717294243223,-500.0,0.00021917,2]
[328380181,1717294243232,-500.0,0.00021917,2]
[328380182,1717294243241,-500.0,0.00021917,2]
[328380183,1717294243251,-411.91691151,0.00021917,2]
[328380184,1717294243260,-571.31101271,0.00021917,2]
[328380186,1717294243269,-500.0,0.00021917,2]
[328380188,1717294243278,-500.0,0.00021917,2]
[328380190,1717294243287,-618.98,0.00021917,2]
[328380191,1717294243296,-500.0,0.00021917,2]
[328380192,1717294243305,-500.0,0.00021917,2]
[328380193,1717294243315,-697.06,0.00021917,2]
[328380194,1717294243323,-500.0,0.00021917,2]
[328380195,1717294243333,-646.39,0.00021917,2]
[328380196,1717294243342,-408.28281946,0.00021917,2]
[328380230,1717294400466,301.30002533,0.0002101,14]
[328380231,1717294408344,273.37336231,0.0002101,14]
[328380235,1717295031610,9999.999999,9.99e-05,10]
[328380269,1717295087242,16175.12436626,9.99e-05,2]
[328380270,1717295104857,10987.20024867,9.99e-05,2]
[328380339,1717295443784,-292.14570031,0.00016436,2]
[328380340,1717295443794,-603.81324676,0.000189,2]
[328380341,1717295443804,-115.77342266,0.0002,2]
[328380342,1717295443816,-1502.46567229,0.0002,2]
[328380344,1717295445428,-2649.16090505,0.0002,2]
[328380345,1717295445438,-1862.0,0.0002,2]
[328380346,1717295445447,-267.5169447,0.0002034,2]
[328380347,1717295445457,-250.0,0.00020449,2]
[328380348,1717295445466,-279.37892895,0.000208,2]
[328380349,1717295445476,-1204.83361927,0.00021,2]
[328380350,1717295445486,-583.8037285,0.00021096,2]
[328380351,1717295445495,-153.0,0.00021278,2]
[328380352,1717295445504,-173.96008528,0.0002158,2]
[328380353,1717295446709,-11382.56434333,0.0002158,2]
[328380354,1717295446719,-3000.0,0.000218,2]
[328380355,1717295446728,-3000.0,0.0002181,2]
[328380356,1717295446737,-975.45350413,0.00021815,2]
[328380357,1717295446746,-2210.59236336,0.00021817,2]
[328380358,1717295446755,-3000.0,0.0002182,2]
[328380359,1717295446764,-5550.0,0.0002183,2]
[328380360,1717295446773,-4233.16048784,0.00021876,2]
[328380361,1717295446782,-150.0,0.00021907,2]
[328380362,1717295446791,-498.0,0.00021907,2]
[328380363,1717295446800,-1283.5963213,0.00021915,2]
[328380364,1717295446810,-1909.46953361,0.00021915,2]
[328380365,1717295446819,-215.52488797,0.00021915,2]
[328380366,1717295446828,-391.38625186,0.00021915,2]
[328380367,1717295446837,-2645.41190601,0.00021916,2]
[328380368,1717295446847,-10000.0,0.00021916,2]
[328380369,1717295446856,-5942.14,0.00021916,7]
[328380370,1717295446865,-5942.14,0.00021916,7]
[328380371,1717295446875,-5942.14,0.00021916,7]
[328380372,1717295446884,-5942.14,0.00021916,7]
[328380373,1717295446893,-5942.14,0.00021916,7]
[328380374,1717295446903,-5942.14,0.00021916,7]
[328380375,1717295446912,-4325.56478846,0.00021916,7]
[328380376,1717295538404,923.07966814,0.00014,2]
[328380380,1717295756480,489.04932178,9.999e-05,2]
[328380383,1717296356014,923.07966814,0.00014,2]
[328380422,1717296633132,-2639.57223461,0.00016435,2]
[328380423,1717296633142,-1141.27717258,0.00016436,2]
[328380424,1717296633151,-292.14570031,0.00016436,2]
[328380425,1717296633160,-9.98383331,0.00018169,2]
[328380426,1717296633172,-24890.01616669,0.00018169,2]
[328380427,1717296633182,-208.83396,0.00018465,2]
[328380428,1717296633192,-3044.2807967,0.00018676,2]
[328380429,1717296633201,-703.05043884,0.000189,2]
[328380430,1717296633211,-1029.675477,0.00018943,2]
[328380431,1717296633220,-174.646733,0.00019178,2]
[328380432,1717296633229,-168.680893,0.00019238,2]
[328380433,1717296633239,-1754.1979692,0.00019395,2]
[328380434,1717296633248,-888.79080701,0.00020718,2]
[328380435,1717296633257,-927.0910317,0.00020818,2]
[328380436,1717296633267,-351.92370805,0.00021,2]
[328380437,1717296633276,-600.0,0.0002104,2]
[328380438,1717296633285,-153.3400123,0.00021178,2]
[328380439,1717296633294,-204.985722,0.00021378,2]
[328380440,1717296633304,-204.985722,0.00021378,2]
[328380441,1717296633313,-204.985722,0.00021378,2]
[328380442,1717296633322,-888.79080699,0.00021619,2]
[328380443,1717296633331,-4233.16048784,0.00021635,2]
[328380444,1717296633341,-15854.0,0.0002171,2]
[328380445,1717296633349,-620.19365926,0.00021769,2]
[328380446,1717296633359,-150.0,0.000218,2]
[328380447,1717296633368,-24228.66701723,0.0002183,2]
[328380448,1717296633377,-498.0,0.00021912,2]
[328380449,1717296633387,-150.0,0.00021912,2]
[328380450,1717296633396,-2928.97455787,0.00021914,2]
[328380451,1717296633405,-318.00069836,0.00021914,2]
[328380452,1717296633414,-693.6703341,0.00021914,2]
[328380453,1717296633423,-231.92738547,0.00021914,2]
[328380454,1717296633432,-1320.90156692,0.00021914,2]
[328380455,1717296633444,-351.87655956,0.00021914,2]
[328380456,1717296633453,-1903.13024359,0.00021914,2]
[328380457,1717296633462,-2692.83385798,0.00021914,2]
[328380458,1717296633470,-2394.14675434,0.00021914,2]
[328380497,1717296643483,-9255.25132802,0.00021914,2]
[328380501,1717296665180,158.85375121,9.999e-05,2]
[328380502,1717296709139,489.04932178,9.999e-05,2]
[328380505,1717296793083,154.98450155,0.0001,2]
[328380539,1717297158681,-3068.27254883,0.00016423,2]
[328380540,1717297158703,-2639.57223461,0.00016423,2]
[328380541,1717297158725,-9577.87416142,0.00016424,2]
[328380542,1717297158750,-427.45849627,0.00016436,2]
[328380543,1717297158775,-1138.28233504,0.00016436,2]
[328380548,1717297313662,154.98450155,9.999e-05,2]
[328380552,1717297552620,1734.0635937,0.00018469,2]
[328380554,1717297571936,280.710044,0.00018469,2]
[328380555,1717297590376,1064.25076911,0.000189,2]
[328380558,1717297648380,218.2783628,0.00018446,2]
[328380565,1717297708476,721.46199145,9.999e-05,2]
[328380566,1717297720631,585.0309309,0.00018623,2]
[328380569,1717297743356,3389.76003032,0.00018744,2]
[328380647,1717297832463,-2028.89952765,0.00018743,2]